Workbook

Sheet Employee Hours
B1: Shifts/Week
A2: Employee | B2: Min | C2: Max | D2: Scheduled to work
A3: 1 | B3: 8 | C3: 12 | D3: =Assignments!U6 -> 12
A4: =1+A3 -> 2 | B4: 8 | C4: 12 | D4: =Assignments!U7 -> 12
A5: =1+A4 -> 3 | B5: 8 | C5: 12 | D5: =Assignments!U8 -> 11
A6: 4 | B6: 4 | C6: 8 | D6: =Assignments!U9 -> 8
A7: SUM | B7: =SUM(B3:B6) -> 28 | C7: =SUM(C3:C6) -> 44

Sheet Employee Availability
A1: Day of Week | C1: Sunday | I1: Monday | O1: Tuesday
A2: Shift of Day | C2: 1 | D2: =MOD(C2,6)+1 -> 2 | E2: =MOD(D2,6)+1 -> 3 | F2: 4 | G2: 5 | H2: 6 | I2: 1 | J2: 2 | K2: 3 | L2: 4 | M2: 5 | N2: 6 | O2: 1 | P2: 2 | Q2: 3 | R2: 4 | S2: 5 | T2: 6
A3: Readable Shift | C3: 12AM-4AM | D3: 4AM-8AM | E3: 8AM-Noon | F3: Noon-4PM | G3: 4PM-8PM | H3: 8PM-12AM | I3: 12AM-4AM | J3: 4AM-8AM | K3: 8AM-Noon | L3: Noon-4PM | M3: 4PM-8PM | N3: 8PM-12AM | O3: 12AM-4AM | P3: 4AM-8AM | Q3: 8AM-Noon | R3: Noon-4PM | S3: 4PM-8PM | T3: 8PM-12AM
B4: Employee | U4: SUM
B5: 1 | C5: 1 | D5: 1 | E5: 1 | F5: 1 | G5: 1 | H5: 1 | I5: 0 | J5: 1 | K5: 1 | L5: 1 | M5: 1 | N5: 1 | O5: 1 | P5: 1 | Q5: 1 | R5: 1 | S5: 1 | T5: 1 | U5: =SUM(C5:T5) -> 17
B6: 2 | C6: 1 | D6: 1 | E6: 1 | F6: 1 | G6: 1 | H6: 1 | I6: 1 | J6: 1 | K6: 1 | L6: 1 | M6: 1 | N6: 1 | O6: 1 | P6: 1 | Q6: 1 | R6: 1 | S6: 0 | T6: 1 | U6: =SUM(C6:T6) -> 17
B7: 3 | C7: 1 | D7: 1 | E7: 1 | F7: 1 | G7: 1 | H7: 1 | I7: 1 | J7: 1 | K7: 1 | L7: 1 | M7: 1 | N7: 1 | O7: 1 | P7: 1 | Q7: 1 | R7: 1 | S7: 1 | T7: 1 | U7: 18
B8: 4 | C8: 1 | D8: 0 | E8: 1 | F8: 1 | G8: 1 | H8: 1 | I8: 1 | J8: 1 | K8: 1 | L8: 1 | M8: 1 | N8: 1 | O8: 1 | P8: 1 | Q8: 0 | R8: 1 | S8: 1 | T8: 1 | U8: 16

Sheet Employee Preference
A1: Day of Week | C1: Sunday | I1: Monday | O1: Tuesday
A2: Shift of Day | C2: 1 | D2: =MOD(C2,6)+1 -> 2 | E2: =MOD(D2,6)+1 -> 3 | F2: 4 | G2: 5 | H2: 6 | I2: 1 | J2: 2 | K2: 3 | L2: 4 | M2: 5 | N2: 6 | O2: 1 | P2: 2 | Q2: 3 | R2: 4 | S2: 5 | T2: 6
A3: Readable Shift | C3: 12AM-4AM | D3: 4AM-8AM | E3: 8AM-Noon | F3: Noon-4PM | G3: 4PM-8PM | H3: 8PM-12AM | I3: 12AM-4AM | J3: 4AM-8AM | K3: 8AM-Noon | L3: Noon-4PM | M3: 4PM-8PM | N3: 8PM-12AM | O3: 12AM-4AM | P3: 4AM-8AM | Q3: 8AM-Noon | R3: Noon-4PM | S3: 4PM-8PM | T3: 8PM-12AM | U3: Count | W3: Prefix
B4: Employee | U4: Alpha | V4: Beta | W4: Pref | X4: Neg
B5: 1 | C5: 0 | D5: 0 | E5: 1 | F5: 1 | G5: 1 | H5: 1 | I5: 0 | J5: 0 | K5: 1 | L5: 1 | M5: 1 | N5: 1 | O5: 0 | P5: 0 | Q5: 1 | R5: 1 | S5: 1 | T5: 1 | U5: =SUMPRODUCT(C5:T5,'Employee Availability'!C5:T5) -> 12 | V5: ='Employee Availability'!U5-'Employee Preference'!U5 -> 5 | W5: =IF(OR(U5=0,V5=0),0,V5/(U5+V5)) -> 0.2941176471 | X5: =IF(OR(U5=0,V5=0),0,W5*U5/V5) -> 0.7058823529
B6: 2 | C6: 1 | D6: 1 | E6: 1 | F6: 1 | G6: 1 | H6: 1 | I6: 1 | J6: 1 | K6: 1 | L6: 1 | M6: 1 | N6: 1 | O6: 1 | P6: 1 | Q6: 1 | R6: 1 | S6: 0 | T6: 0 | U6: =SUMPRODUCT(C6:T6,'Employee Availability'!C6:T6) -> 16 | V6: ='Employee Availability'!U6-'Employee Preference'!U6 -> 1 | W6: =IF(OR(U6=0,V6=0),0,V6/(U6+V6)) -> 0.05882352941 | X6: =IF(OR(U6=0,V6=0),0,W6*U6/V6) -> 0.9411764706
B7: 3 | C7: 1 | D7: 1 | E7: 0 | F7: 0 | G7: 0 | H7: 1 | I7: 1 | J7: 1 | K7: 1 | L7: 1 | M7: 0 | N7: 0 | O7: 0 | P7: 0 | Q7: 1 | R7: 1 | S7: 1 | T7: 1 | U7: =SUMPRODUCT(C7:T7,'Employee Availability'!C7:T7) -> 11 | V7: ='Employee Availability'!U7-'Employee Preference'!U7 -> 7 | W7: 0.3888888889 | X7: 0.6111111111
B8: 4 | C8: 1 | D8: 1 | E8: 1 | F8: 1 | G8: 1 | H8: 0 | I8: 0 | J8: 0 | K8: 0 | L8: 1 | M8: 1 | N8: 1 | O8: 1 | P8: 1 | Q8: 1 | R8: 0 | S8: 0 | T8: 0 | U8: =SUMPRODUCT(C8:T8,'Employee Availability'!C8:T8) -> 9 | V8: ='Employee Availability'!U8-'Employee Preference'!U8 -> 7 | W8: 0.4375 | X8: 0.5625

Sheet Assignments
A1: Day of Week | C1: Sunday | I1: Monday | O1: Tuesday
A2: Shift of Day | C2: 1 | D2: =MOD(C2,6)+1 -> 2 | E2: =MOD(D2,6)+1 -> 3 | F2: 4 | G2: 5 | H2: 6 | I2: 1 | J2: 2 | K2: 3 | L2: 4 | M2: 5 | N2: 6 | O2: 1 | P2: 2 | Q2: 3 | R2: 4 | S2: 5 | T2: 6
A3: Readable Shift | C3: 12AM-4AM | D3: 4AM-8AM | E3: 8AM-Noon | F3: Noon-4PM | G3: 4PM-8PM | H3: 8PM-12AM | I3: 12AM-4AM | J3: 4AM-8AM | K3: 8AM-Noon | L3: Noon-4PM | M3: 4PM-8PM | N3: 8PM-12AM | O3: 12AM-4AM | P3: 4AM-8AM | Q3: 8AM-Noon | R3: Noon-4PM | S3: 4PM-8PM | T3: 8PM-12AM
A4: Required Employees | C4: 2 | D4: 2 | E4: 3 | F4: 2 | G4: 2 | H4: 2 | I4: 2 | J4: 2 | K4: 3 | L4: 2 | M4: 2 | N4: 2 | O4: 2 | P4: 2 | Q4: 3 | R4: 2 | S4: 2 | T4: 2 | U4: =SUM(C4:T4) -> 39
B5: Working | C5: =SUM(C6:C9) -> 2 | D5: =SUM(D6:D9) -> 2 | E5: =SUM(E6:E9) -> 4 | F5: =SUM(F6:F9) -> 3 | G5: =SUM(G6:G9) -> 2 | H5: =SUM(H6:H9) -> 2 | I5: =SUM(I6:I9) -> 2 | J5: =SUM(J6:J9) -> 2 | K5: =SUM(K6:K9) -> 3 | L5: =SUM(L6:L9) -> 2 | M5: =SUM(M6:M9) -> 2 | N5: =SUM(N6:N9) -> 3 | O5: =SUM(O6:O9) -> 2 | P5: =SUM(P6:P9) -> 3 | Q5: =SUM(Q6:Q9) -> 3 | R5: =SUM(R6:R9) -> 2 | S5: =SUM(S6:S9) -> 2 | T5: =SUM(T6:T9) -> 2 | U5: =SUM(C5:T5) -> 43 | V5: LB | W5: UB
A6: Employee Working? | B6: 1 | C6: 0 | D6: 0 | E6: 1 | F6: 1 | G6: 1 | H6: 1 | I6: 0 | J6: 0 | K6: 1 | L6: 1 | M6: 1 | N6: 1 | O6: 0 | P6: 0 | Q6: 1 | R6: 1 | S6: 1 | T6: 1 | U6: =SUM(C6:T6) -> 12 | V6: ='Employee Hours'!B3 -> 8 | W6: ='Employee Hours'!C3 -> 12
B7: 2 | C7: 1 | D7: 1 | E7: 1 | F7: 1 | G7: 0 | H7: 0 | I7: 1 | J7: 1 | K7: 1 | L7: 1 | M7: 0 | N7: 0 | O7: 1 | P7: 1 | Q7: 1 | R7: 1 | S7: 0 | T7: 0 | U7: 12 | V7: ='Employee Hours'!B4 -> 8 | W7: ='Employee Hours'!C4 -> 12
B8: 3 | C8: 0 | D8: 1 | E8: 1 | F8: 0 | G8: 0 | H8: 1 | I8: 1 | J8: 1 | K8: 1 | L8: 0 | M8: 0 | N8: 1 | O8: 0 | P8: 1 | Q8: 1 | R8: 0 | S8: 1 | T8: 1 | U8: 11 | V8: ='Employee Hours'!B5 -> 8 | W8: ='Employee Hours'!C5 -> 12
B9: 4 | C9: 1 | D9: 0 | E9: 1 | F9: 1 | G9: 1 | H9: 0 | I9: 0 | J9: 0 | K9: 0 | L9: 0 | M9: 1 | N9: 1 | O9: 1 | P9: 1 | Q9: 0 | R9: 0 | S9: 0 | T9: 0 | U9: 8 | V9: ='Employee Hours'!B6 -> 4 | W9: ='Employee Hours'!C6 -> 8
B10: Objective Function | C10: =SUMPRODUCT(C6:T9,C12:T15) -> 52.0130719
A12: Weighted Preference | B12: 1 | C12: ='Employee Availability'!C5 * IF('Employee Preference'!C5>0,1+'Employee Preference'!$W5,1-'Employee Preference'!$X5) -> 0.2941176471 | D12: ='Employee Availability'!D5 * IF('Employee Preference'!D5>0,1+'Employee Preference'!$W5,1-'Employee Preference'!$X5) -> 0.2941176471 | E12: ='Employee Availability'!E5 * IF('Employee Preference'!E5>0,1+'Employee Preference'!$W5,1-'Employee Preference'!$X5) -> 1.294117647 | F12: ='Employee Availability'!F5 * IF('Employee Preference'!F5>0,1+'Employee Preference'!$W5,1-'Employee Preference'!$X5) -> 1.294117647 | G12: ='Employee Availability'!G5 * IF('Employee Preference'!G5>0,1+'Employee Preference'!$W5,1-'Employee Preference'!$X5) -> 1.294117647 | H12: ='Employee Availability'!H5 * IF('Employee Preference'!H5>0,1+'Employee Preference'!$W5,1-'Employee Preference'!$X5) -> 1.294117647 | I12: ='Employee Availability'!I5 * IF('Employee Preference'!I5>0,1+'Employee Preference'!$W5,1-'Employee Preference'!$X5) -> 0 | J12: ='Employee Availability'!J5 * IF('Employee Preference'!J5>0,1+'Employee Preference'!$W5,1-'Employee Preference'!$X5) -> 0.2941176471 | K12: ='Employee Availability'!K5 * IF('Employee Preference'!K5>0,1+'Employee Preference'!$W5,1-'Employee Preference'!$X5) -> 1.294117647 | L12: ='Employee Availability'!L5 * IF('Employee Preference'!L5>0,1+'Employee Preference'!$W5,1-'Employee Preference'!$X5) -> 1.294117647 | M12: ='Employee Availability'!M5 * IF('Employee Preference'!M5>0,1+'Employee Preference'!$W5,1-'Employee Preference'!$X5) -> 1.294117647 | N12: ='Employee Availability'!N5 * IF('Employee Preference'!N5>0,1+'Employee Preference'!$W5,1-'Employee Preference'!$X5) -> 1.294117647 | O12: ='Employee Availability'!O5 * IF('Employee Preference'!O5>0,1+'Employee Preference'!$W5,1-'Employee Preference'!$X5) -> 0.2941176471 | P12: ='Employee Availability'!P5 * IF('Employee Preference'!P5>0,1+'Employee Preference'!$W5,1-'Employee Preference'!$X5) -> 0.2941176471 | Q12: ='Employee Availability'!Q5 * IF('Employee Preference'!Q5>0,1+'Employee Preference'!$W5,1-'Employee Preference'!$X5) -> 1.294117647 | R12: ='Employee Availability'!R5 * IF('Employee Preference'!R5>0,1+'Employee Preference'!$W5,1-'Employee Preference'!$X5) -> 1.294117647 | S12: ='Employee Availability'!S5 * IF('Employee Preference'!S5>0,1+'Employee Preference'!$W5,1-'Employee Preference'!$X5) -> 1.294117647 | T12: ='Employee Availability'!T5 * IF('Employee Preference'!T5>0,1+'Employee Preference'!$W5,1-'Employee Preference'!$X5) -> 1.294117647
B13: 2 | C13: ='Employee Availability'!C6 * IF('Employee Preference'!C6>0,1+'Employee Preference'!$W6,1-'Employee Preference'!$X6) -> 1.058823529 | D13: ='Employee Availability'!D6 * IF('Employee Preference'!D6>0,1+'Employee Preference'!$W6,1-'Employee Preference'!$X6) -> 1.058823529 | E13: ='Employee Availability'!E6 * IF('Employee Preference'!E6>0,1+'Employee Preference'!$W6,1-'Employee Preference'!$X6) -> 1.058823529 | F13: ='Employee Availability'!F6 * IF('Employee Preference'!F6>0,1+'Employee Preference'!$W6,1-'Employee Preference'!$X6) -> 1.058823529 | G13: ='Employee Availability'!G6 * IF('Employee Preference'!G6>0,1+'Employee Preference'!$W6,1-'Employee Preference'!$X6) -> 1.058823529 | H13: ='Employee Availability'!H6 * IF('Employee Preference'!H6>0,1+'Employee Preference'!$W6,1-'Employee Preference'!$X6) -> 1.058823529 | I13: ='Employee Availability'!I6 * IF('Employee Preference'!I6>0,1+'Employee Preference'!$W6,1-'Employee Preference'!$X6) -> 1.058823529 | J13: ='Employee Availability'!J6 * IF('Employee Preference'!J6>0,1+'Employee Preference'!$W6,1-'Employee Preference'!$X6) -> 1.058823529 | K13: ='Employee Availability'!K6 * IF('Employee Preference'!K6>0,1+'Employee Preference'!$W6,1-'Employee Preference'!$X6) -> 1.058823529 | L13: ='Employee Availability'!L6 * IF('Employee Preference'!L6>0,1+'Employee Preference'!$W6,1-'Employee Preference'!$X6) -> 1.058823529 | M13: ='Employee Availability'!M6 * IF('Employee Preference'!M6>0,1+'Employee Preference'!$W6,1-'Employee Preference'!$X6) -> 1.058823529 | N13: ='Employee Availability'!N6 * IF('Employee Preference'!N6>0,1+'Employee Preference'!$W6,1-'Employee Preference'!$X6) -> 1.058823529 | O13: ='Employee Availability'!O6 * IF('Employee Preference'!O6>0,1+'Employee Preference'!$W6,1-'Employee Preference'!$X6) -> 1.058823529 | P13: ='Employee Availability'!P6 * IF('Employee Preference'!P6>0,1+'Employee Preference'!$W6,1-'Employee Preference'!$X6) -> 1.058823529 | Q13: ='Employee Availability'!Q6 * IF('Employee Preference'!Q6>0,1+'Employee Preference'!$W6,1-'Employee Preference'!$X6) -> 1.058823529 | R13: ='Employee Availability'!R6 * IF('Employee Preference'!R6>0,1+'Employee Preference'!$W6,1-'Employee Preference'!$X6) -> 1.058823529 | S13: ='Employee Availability'!S6 * IF('Employee Preference'!S6>0,1+'Employee Preference'!$W6,1-'Employee Preference'!$X6) -> 0 | T13: ='Employee Availability'!T6 * IF('Employee Preference'!T6>0,1+'Employee Preference'!$W6,1-'Employee Preference'!$X6) -> 0.05882352941
B14: 3 | C14: ='Employee Availability'!C7 * IF('Employee Preference'!C7>0,1+'Employee Preference'!$W7,1-'Employee Preference'!$X7) -> 1.388888889 | D14: ='Employee Availability'!D7 * IF('Employee Preference'!D7>0,1+'Employee Preference'!$W7,1-'Employee Preference'!$X7) -> 1.388888889 | E14: ='Employee Availability'!E7 * IF('Employee Preference'!E7>0,1+'Employee Preference'!$W7,1-'Employee Preference'!$X7) -> 0.3888888889 | F14: ='Employee Availability'!F7 * IF('Employee Preference'!F7>0,1+'Employee Preference'!$W7,1-'Employee Preference'!$X7) -> 0.3888888889 | G14: ='Employee Availability'!G7 * IF('Employee Preference'!G7>0,1+'Employee Preference'!$W7,1-'Employee Preference'!$X7) -> 0.3888888889 | H14: ='Employee Availability'!H7 * IF('Employee Preference'!H7>0,1+'Employee Preference'!$W7,1-'Employee Preference'!$X7) -> 1.388888889 | I14: ='Employee Availability'!I7 * IF('Employee Preference'!I7>0,1+'Employee Preference'!$W7,1-'Employee Preference'!$X7) -> 1.388888889 | J14: ='Employee Availability'!J7 * IF('Employee Preference'!J7>0,1+'Employee Preference'!$W7,1-'Employee Preference'!$X7) -> 1.388888889 | K14: ='Employee Availability'!K7 * IF('Employee Preference'!K7>0,1+'Employee Preference'!$W7,1-'Employee Preference'!$X7) -> 1.388888889 | L14: ='Employee Availability'!L7 * IF('Employee Preference'!L7>0,1+'Employee Preference'!$W7,1-'Employee Preference'!$X7) -> 1.388888889 | M14: ='Employee Availability'!M7 * IF('Employee Preference'!M7>0,1+'Employee Preference'!$W7,1-'Employee Preference'!$X7) -> 0.3888888889 | N14: ='Employee Availability'!N7 * IF('Employee Preference'!N7>0,1+'Employee Preference'!$W7,1-'Employee Preference'!$X7) -> 0.3888888889 | O14: ='Employee Availability'!O7 * IF('Employee Preference'!O7>0,1+'Employee Preference'!$W7,1-'Employee Preference'!$X7) -> 0.3888888889 | P14: ='Employee Availability'!P7 * IF('Employee Preference'!P7>0,1+'Employee Preference'!$W7,1-'Employee Preference'!$X7) -> 0.3888888889 | Q14: ='Employee Availability'!Q7 * IF('Employee Preference'!Q7>0,1+'Employee Preference'!$W7,1-'Employee Preference'!$X7) -> 1.388888889 | R14: ='Employee Availability'!R7 * IF('Employee Preference'!R7>0,1+'Employee Preference'!$W7,1-'Employee Preference'!$X7) -> 1.388888889 | S14: ='Employee Availability'!S7 * IF('Employee Preference'!S7>0,1+'Employee Preference'!$W7,1-'Employee Preference'!$X7) -> 1.388888889 | T14: ='Employee Availability'!T7 * IF('Employee Preference'!T7>0,1+'Employee Preference'!$W7,1-'Employee Preference'!$X7) -> 1.388888889
B15: 4 | C15: ='Employee Availability'!C8 * IF('Employee Preference'!C8>0,1+'Employee Preference'!$W8,1-'Employee Preference'!$X8) -> 1.4375 | D15: ='Employee Availability'!D8 * IF('Employee Preference'!D8>0,1+'Employee Preference'!$W8,1-'Employee Preference'!$X8) -> 0 | E15: ='Employee Availability'!E8 * IF('Employee Preference'!E8>0,1+'Employee Preference'!$W8,1-'Employee Preference'!$X8) -> 1.4375 | F15: ='Employee Availability'!F8 * IF('Employee Preference'!F8>0,1+'Employee Preference'!$W8,1-'Employee Preference'!$X8) -> 1.4375 | G15: ='Employee Availability'!G8 * IF('Employee Preference'!G8>0,1+'Employee Preference'!$W8,1-'Employee Preference'!$X8) -> 1.4375 | H15: ='Employee Availability'!H8 * IF('Employee Preference'!H8>0,1+'Employee Preference'!$W8,1-'Employee Preference'!$X8) -> 0.4375 | I15: ='Employee Availability'!I8 * IF('Employee Preference'!I8>0,1+'Employee Preference'!$W8,1-'Employee Preference'!$X8) -> 0.4375 | J15: ='Employee Availability'!J8 * IF('Employee Preference'!J8>0,1+'Employee Preference'!$W8,1-'Employee Preference'!$X8) -> 0.4375 | K15: ='Employee Availability'!K8 * IF('Employee Preference'!K8>0,1+'Employee Preference'!$W8,1-'Employee Preference'!$X8) -> 0.4375 | L15: ='Employee Availability'!L8 * IF('Employee Preference'!L8>0,1+'Employee Preference'!$W8,1-'Employee Preference'!$X8) -> 1.4375 | M15: ='Employee Availability'!M8 * IF('Employee Preference'!M8>0,1+'Employee Preference'!$W8,1-'Employee Preference'!$X8) -> 1.4375 | N15: ='Employee Availability'!N8 * IF('Employee Preference'!N8>0,1+'Employee Preference'!$W8,1-'Employee Preference'!$X8) -> 1.4375 | O15: ='Employee Availability'!O8 * IF('Employee Preference'!O8>0,1+'Employee Preference'!$W8,1-'Employee Preference'!$X8) -> 1.4375 | P15: ='Employee Availability'!P8 * IF('Employee Preference'!P8>0,1+'Employee Preference'!$W8,1-'Employee Preference'!$X8) -> 1.4375 | Q15: ='Employee Availability'!Q8 * IF('Employee Preference'!Q8>0,1+'Employee Preference'!$W8,1-'Employee Preference'!$X8) -> 0 | R15: ='Employee Availability'!R8 * IF('Employee Preference'!R8>0,1+'Employee Preference'!$W8,1-'Employee Preference'!$X8) -> 0.4375 | S15: ='Employee Availability'!S8 * IF('Employee Preference'!S8>0,1+'Employee Preference'!$W8,1-'Employee Preference'!$X8) -> 0.4375 | T15: ='Employee Availability'!T8 * IF('Employee Preference'!T8>0,1+'Employee Preference'!$W8,1-'Employee Preference'!$X8) -> 0.4375
A18: Number of shifts working in last day | B18: 1 | C18: =C6+SUM(P6:T6) -> 4 | D18: =SUM(Q6:T6)+SUM(C6:D6) -> 4 | E18: =SUM(R6:T6)+SUM(C6:E6) -> 4 | F18: =SUM(C6:E6)+F6+T6+S6 -> 4 | G18: =SUM(C6:G6)+T6 -> 4 | H18: =SUM(C6:H6) -> 4 | I18: =SUM(D6:I6) -> 4 | J18: 4 | K18: 4 | L18: 4 | M18: 4 | N18: 4 | O18: 4 | P18: 4 | Q18: 4 | R18: 4 | S18: 4 | T18: 4
B19: 2 | C19: =C7+SUM(P7:T7) -> 4 | D19: =SUM(Q7:T7)+SUM(C7:D7) -> 4 | E19: =SUM(R7:T7)+SUM(C7:E7) -> 4 | F19: =SUM(C7:E7)+F7+T7+S7 -> 4 | G19: =SUM(C7:G7)+T7 -> 4 | H19: =SUM(C7:H7) -> 4 | I19: =SUM(D7:I7) -> 4 | J19: =SUM(E7:J7) -> 4 | K19: =SUM(F7:K7) -> 4 | L19: =SUM(G7:L7) -> 4 | M19: =SUM(H7:M7) -> 4 | N19: =SUM(I7:N7) -> 4 | O19: =SUM(J7:O7) -> 4 | P19: =SUM(K7:P7) -> 4 | Q19: =SUM(L7:Q7) -> 4 | R19: =SUM(M7:R7) -> 4 | S19: =SUM(N7:S7) -> 4 | T19: =SUM(O7:T7) -> 4
B20: 3 | C20: 4 | D20: 4 | E20: 4 | F20: 4 | G20: 3 | H20: 3 | I20: 4 | J20: 4 | K20: 4 | L20: 4 | M20: 4 | N20: 4 | O20: 3 | P20: 3 | Q20: 3 | R20: 3 | S20: 4 | T20: 4
B21: 4 | C21: 2 | D21: 1 | E21: 2 | F21: 3 | G21: 4 | H21: 4 | I21: 3 | J21: 3 | K21: 2 | L21: 1 | M21: 1 | N21: 2 | O21: 3 | P21: 4 | Q21: 4 | R21: 4 | S21: 3 | T21: 2
A23: Shift limit per day | B23: 1 | C23: 4 | D23: 4 | E23: 4 | F23: 4 | G23: 4 | H23: 4 | I23: 4 | J23: 4 | K23: 4 | L23: 4 | M23: 4 | N23: 4 | O23: 4 | P23: 4 | Q23: 4 | R23: 4 | S23: 4 | T23: 4
B24: 2 | C24: 4 | D24: 4 | E24: 4 | F24: 4 | G24: 4 | H24: 4 | I24: 4 | J24: 4 | K24: 4 | L24: 4 | M24: 4 | N24: 4 | O24: 4 | P24: 4 | Q24: 4 | R24: 4 | S24: 4 | T24: 4
B25: 3 | C25: 4 | D25: 4 | E25: 4 | F25: 4 | G25: 4 | H25: 4 | I25: 4 | J25: 4 | K25: 4 | L25: 4 | M25: 4 | N25: 4 | O25: 4 | P25: 4 | Q25: 4 | R25: 4 | S25: 4 | T25: 4
B26: 4 | C26: 4 | D26: 4 | E26: 4 | F26: 4 | G26: 4 | H26: 4 | I26: 4 | J26: 4 | K26: 4 | L26: 4 | M26: 4 | N26: 4 | O26: 4 | P26: 4 | Q26: 4 | R26: 4 | S26: 4 | T26: 4
